bitfinex-derivatives/quotes_BTCF0:USTF0_20240925
["timestamp","ask_amount","ask_price","bid_price","bid_amount"]
[1727249564113,0.449152,63811.0,63810.0,0.25613165]
[1727249564418,0.439152,63811.0,63810.0,0.25513165]
[1727249564623,0.440152,63811.0,63810.0,0.25513165]
[1727249564818,0.001,63811.0,63810.0,0.39513165]
[1727249565321,0.00235136,63813.0,63810.0,0.39513165]
[1727249565322,0.00235136,63813.0,63812.0,0.078351]
[1727249565710,0.00235136,63813.0,63812.0,0.26101876]
[1727249566626,0.00335136,63813.0,63812.0,0.26101876]
[1727249568626,0.00735136,63813.0,63812.0,0.26101876]
[1727249569125,0.14735136,63813.0,63812.0,0.18266776]
[1727249569334,0.22570136,63813.0,63812.0,0.18266776]
[1727249570912,0.08335,63813.0,63812.0,0.18266776]
[1727249571117,0.08335,63813.0,63812.0,0.26101876]
[1727249572635,0.22335,63813.0,63812.0,0.26101876]
[1727249574919,0.08335,63813.0,63812.0,0.26101876]
[1727249577022,0.005,63813.0,63812.0,0.26101876]
[1727249578517,0.05165556,63813.0,63812.0,0.26101876]
[1727249579230,0.005,63813.0,63812.0,0.26101876]
[1727249587437,0.005,63813.0,63812.0,0.3236912]
[1727249588032,0.05175435,63813.0,63812.0,0.26101876]
[1727249588343,0.005,63813.0,63812.0,0.26101876]
[1727249588540,0.05175435,63813.0,63812.0,0.3236912]
[1727249588940,0.145,63813.0,63812.0,0.3236912]
[1727249589138,0.28555952,63813.0,63812.0,0.18266776]
[1727249589326,0.31815952,63813.0,63812.0,0.18266776]
[1727249589531,0.25595,63813.0,63812.0,0.18266776]
[1727249590434,0.35970461,63813.0,63812.0,0.18266776]
[1727249590640,0.35970461,63813.0,63812.0,0.00132653]
[1727249591136,0.45325466,63813.0,63812.0,0.00132653]
[1727249593143,0.35970461,63813.0,63812.0,0.00132653]
[1727249593331,0.078361,63804.0,63803.0,0.04700606]
[1727249593536,0.078361,63804.0,63797.0,0.04935718]
[1727249593537,0.078368,63798.0,63797.0,0.04935718]
[1727249593737,0.439168,63798.0,63797.0,0.04935718]
[1727249593932,0.439168,63798.0,63797.0,0.18277083]
[1727249594337,0.439168,63798.0,63797.0,0.00235112]
[1727249594542,0.51708662,63798.0,63797.0,0.00235112]
[1727249595137,0.62072536,63798.0,63797.0,0.00235112]
[1727249595346,0.59531385,63798.0,63797.0,0.00235112]
[1727249595548,0.60031385,63798.0,63797.0,0.00735112]
[1727249595952,0.59931385,63798.0,63797.0,0.00235112]
[1727249596150,0.530536,63798.0,63797.0,0.00335112]
[1727249596351,0.530536,63798.0,63797.0,0.00435112]
[1727249596352,0.573136,63798.0,63797.0,0.00435112]
[1727249598449,0.63526655,63798.0,63797.0,0.00435112]
[1727249600154,0.573136,63798.0,63797.0,0.00435112]
[1727249600860,0.573136,63798.0,63797.0,0.002]
[1727249601253,0.933936,63798.0,63797.0,0.002]
[1727249602665,0.98047309,63798.0,63797.0,0.002]
[1727249603660,0.25887309,63798.0,63797.0,0.002]
[1727249603863,0.98047309,63798.0,63797.0,0.002]
[1727249605362,0.933936,63798.0,63797.0,0.002]
[1727249608762,0.078385,63784.0,63783.0,0.24443401]
[1727249608967,0.439185,63784.0,63783.0,0.24073401]
[1727249609157,0.439185,63784.0,63783.0,0.4084776]
[1727249610366,0.440185,63784.0,63783.0,0.4134776]
[1727249611168,0.440185,63784.0,63783.0,0.4164776]
[1727249611855,0.3618,63784.0,63783.0,0.4948636]
[1727249614263,0.001,63784.0,63783.0,0.4948636]
[1727249619169,0.001,63784.0,63783.0,0.54186966]
[1727249620171,0.001,63784.0,63783.0,0.4948636]
[1727249621173,0.001,63784.0,63783.0,0.55753604]
[1727249622168,0.001,63784.0,63783.0,0.4948636]
[1727249622371,0.001,63784.0,63783.0,0.8556636]
[1727249623074,0.001,63784.0,63783.0,0.4948636]
[1727249623271,0.001,63784.0,63783.0,0.57325696]
[1727249623658,0.001,63784.0,63783.0,0.93405696]
[1727249624067,0.001,63784.0,63783.0,1.02405696]
[1727249624769,0.001,63784.0,63783.0,1.62405696]
[1727249624972,0.0037,63790.0,63783.0,1.62405696]
[1727249624973,0.05021813,63790.0,63787.0,0.078381]
[1727249625164,0.0037,63793.0,63789.0,0.3608]
[1727249625364,0.04651813,63795.0,63791.0,0.07833279]
[1727249625675,0.04651813,63795.0,63790.0,0.20299336]
[1727249625676,0.04651813,63796.0,63795.0,0.078372]
[1727249625877,0.04675648,63796.0,63795.0,0.14103688]
[1727249626068,0.04675648,63796.0,63795.0,0.24753029]
[1727249626370,0.04675648,63796.0,63795.0,0.31017371]
[1727249626572,0.04675648,63796.0,63795.0,0.24753029]
[1727249626770,0.21512648,63797.0,63795.0,0.31017371]
[1727249626964,0.05375648,63796.0,63795.0,0.24753029]
[1727249627169,0.007,63796.0,63795.0,0.24753029]
[1727249627486,0.05375648,63796.0,63795.0,0.24753029]
[1727249627669,0.007,63796.0,63795.0,0.24753029]
[1727249627866,0.007,63796.0,63795.0,0.31017371]
[1727249628376,0.016,63796.0,63795.0,0.24753029]
[1727249631274,0.016,63796.0,63795.0,0.29447294]
[1727249632278,0.016,63796.0,63795.0,0.24753029]
[1727249633273,0.09437,63796.0,63795.0,0.24753029]
[1727249639379,0.45517,63796.0,63795.0,0.24753029]
[1727249641283,0.50192648,63796.0,63795.0,0.24753029]
[1727249641486,0.45517,63796.0,63795.0,0.16915829]
[1727249641992,0.078372,63795.0,63793.0,0.078373]
[1727249642216,0.09,63794.0,63793.0,0.078373]
[1727249642396,0.4508,63794.0,63793.0,0.078373]
[1727249642592,0.4508,63794.0,63793.0,0.24746284]
[1727249643579,0.4548,63794.0,63793.0,0.24746284]
[1727249644795,0.533173,63794.0,63793.0,0.24746284]
[1727249645196,0.540173,63794.0,63793.0,0.24746284]
[1727249645990,0.540173,63794.0,63793.0,0.29442684]
[1727249647285,0.540173,63794.0,63793.0,0.24746284]
[1727249648297,0.540173,63794.0,63793.0,0.16908984]
[1727249648799,0.078375,63792.0,63791.0,0.06264342]
[1727249649200,0.078375,63792.0,63791.0,0.23301009]
[1727249650200,0.078375,63792.0,63791.0,0.17036667]
[1727249650201,0.080375,63792.0,63791.0,0.17036667]
[1727249650702,0.085375,63792.0,63791.0,0.24874367]
[1727249651090,0.085375,63792.0,63791.0,0.078377]
[1727249651400,0.085375,63792.0,63791.0,0.24577506]
[1727249658313,0.007,63792.0,63791.0,0.24577506]
[1727249659205,0.0537077,63792.0,63791.0,0.24577506]
[1727249659710,0.0537077,63792.0,63791.0,0.32410785]
[1727249659897,0.0537077,63792.0,63791.0,0.24577506]
[1727249660101,0.007,63792.0,63791.0,0.40231626]
[1727249660508,0.007,63792.0,63791.0,0.32398347]
[1727249660739,0.007,63792.0,63791.0,0.40235762]
[1727249661015,0.007,63792.0,63791.0,0.40236346]
[1727249661914,0.0537077,63792.0,63791.0,0.24577506]
[1727249662221,0.007,63792.0,63791.0,0.40233276]
[1727249662405,0.007,63792.0,63791.0,0.40233658]
[1727249662802,0.0537077,63792.0,63791.0,0.24577506]
[1727249662999,0.0537077,63792.0,63791.0,0.40239423]
[1727249663509,0.0537077,63792.0,63791.0,0.24577506]
[1727249663711,0.007,63792.0,63791.0,0.32399831]
[1727249665713,0.007,63792.0,63791.0,0.32390773]
[1727249669314,0.007,63792.0,63791.0,0.32390893]
[1727249678521,0.007,63792.0,63791.0,0.32387927]
[1727249681522,0.007,63792.0,63791.0,0.40225627]
[1727249682720,0.007,63792.0,63791.0,0.49628879]
[1727249682925,0.007,63792.0,63791.0,0.40225627]
[1727249683132,0.007,63792.0,63791.0,0.52678879]
[1727249683334,0.007,63792.0,63791.0,0.44868458]
[1727249683526,0.007,63792.0,63791.0,0.52663761]
[1727249684434,0.007,63792.0,63791.0,0.43260509]
[1727249685434,0.007,63792.0,63791.0,0.52663761]
[1727249686734,0.007,63792.0,63791.0,0.43260509]
[1727249688238,0.007,63792.0,63791.0,0.43262959]
[1727249692441,0.007,63792.0,63791.0,0.52662997]
[1727249692838,0.007,63792.0,63791.0,0.44865244]
[1727249693034,0.007,63792.0,63791.0,0.43254899]
[1727249693536,0.0037,63799.0,63798.0,0.156736]
[1727249693838,0.0793077,63804.0,63803.0,0.078362]
[1727249694029,0.0326,63804.0,63803.0,0.078362]
[1727249694229,0.0326,63804.0,63803.0,0.25464482]
[1727249695746,0.0326,63804.0,63803.0,0.31727954]
[1727249696140,0.0466,63804.0,63803.0,0.31827954]
[1727249696936,0.4074,63804.0,63803.0,0.25564482]
[1727249697245,0.5581077,63804.0,63803.0,0.25664482]
[1727249699744,0.1973077,63804.0,63803.0,0.25664482]
[1727249699941,0.5581077,63804.0,63803.0,0.25664482]
[1727249700538,0.5581077,63804.0,63803.0,0.17828282]
[1727249700539,0.589761,63804.0,63803.0,0.17828282]
[1727249700731,0.589761,63804.0,63803.0,0.22525288]
[1727249700931,0.589761,63804.0,63803.0,0.25664482]
[1727249701234,0.499761,63804.0,63803.0,0.25664482]
[1727249703339,0.499761,63804.0,63803.0,0.17828282]
[1727249705138,0.499761,63804.0,63803.0,0.25664482]
[1727249705465,0.499761,63804.0,63803.0,0.30361944]
[1727249708243,0.138961,63804.0,63803.0,0.30361944]
[1727249708439,0.499761,63804.0,63803.0,0.30361944]
[1727249708648,0.499761,63804.0,63803.0,0.22525744]
[1727249710253,0.499761,63804.0,63803.0,0.30361944]
[1727249710552,0.56189155,63804.0,63803.0,0.25664482]
[1727249712345,0.20109155,63804.0,63803.0,0.25664482]
[1727249712545,0.56189155,63804.0,63803.0,0.25664482]
[1727249713153,0.65189155,63804.0,63803.0,0.25664482]
[1727249718350,0.589761,63804.0,63803.0,0.25664482]
[1727249718943,0.65209434,63804.0,63803.0,0.25664482]
[1727249719341,0.589761,63804.0,63803.0,0.25664482]
[1727249719659,0.106361,63804.0,63803.0,0.25664482]
[1727249719960,0.106361,63804.0,63803.0,0.31932177]
[1727249719961,0.16870052,63804.0,63803.0,0.31932177]
[1727249720465,0.028,63804.0,63803.0,0.31932177]
[1727249720642,0.028,63804.0,63803.0,0.41265433]
[1727249720960,0.028,63804.0,63803.0,0.33429184]
[1727249723245,0.028,63804.0,63803.0,0.41265384]
[1727249724156,0.028,63804.0,63803.0,0.67406903]
[1727249724453,0.028,63804.0,63803.0,0.50242374]
[1727249725686,0.028,63804.0,63803.0,0.59633724]
[1727249725964,0.028,63804.0,63803.0,0.59624779]
[1727249726964,0.0037,63810.0,63809.0,0.078354]
[1727249727256,0.05045578,63816.0,63815.0,0.078347]
[1727249727464,0.42313952,63819.0,63815.0,0.13693244]
[1727249727465,0.40755578,63819.0,63815.0,0.13693244]
[1727249727651,0.40755578,63819.0,63816.0,0.04693244]
[1727249727854,0.3608,63819.0,63817.0,0.04693244]
[1727249728048,0.3608,63819.0,63817.0,0.22457457]
[1727249728253,0.3608,63819.0,63818.0,0.078343]
[1727249728579,0.3608,63819.0,63818.0,0.24520031]
[1727249728755,0.3658,63819.0,63818.0,0.24520031]
[1727249729561,0.005,63819.0,63818.0,0.24520031]
[1727249730762,0.005,63819.0,63818.0,0.24620031]
[1727249731157,0.078341,63820.0,63819.0,0.078342]
[1727249731364,0.168341,63820.0,63819.0,0.078342]
[1727249731570,0.168341,63820.0,63819.0,0.24194978]
[1727249731961,0.40755578,63823.0,63822.0,0.078338]
[1727249732157,0.04675578,63828.0,63822.0,0.09]
[1727249732456,0.082031,63829.0,63826.0,0.09]
[1727249732649,0.078331,63829.0,63826.0,0.09]
[1727249732852,0.078331,63829.0,63826.0,0.25771372]
[1727249733357,0.078331,63829.0,63826.0,0.33604772]
[1727249733956,0.00835085,63827.0,63826.0,0.33604772]
[1727249734161,0.00835085,63827.0,63826.0,0.24604772]
[1727249734556,0.00835085,63827.0,63826.0,0.24704772]
[1727249734976,0.00835085,63827.0,63826.0,0.33704772]
[1727249736158,0.00835085,63827.0,63826.0,0.33804772]
[1727249736159,0.01435085,63827.0,63826.0,0.33804772]
[1727249738368,0.012,63827.0,63826.0,0.33804772]
[1727249738755,0.0037,63833.0,63832.0,0.078326]
[1727249738964,0.0327,63838.0,63832.0,0.4508]
[1727249739262,0.0327,63838.0,63836.0,0.09]
[1727249739770,0.0327,63838.0,63837.0,0.17344822]
[1727249739973,0.1227,63838.0,63837.0,0.17344822]
[1727249740159,0.202019,63838.0,63837.0,0.17344822]
[1727249740471,0.078324,63835.0,63834.0,0.17113549]
[1727249740676,0.168324,63835.0,63834.0,0.17113549]
[1727249740876,0.168324,63835.0,63833.0,0.078324]
[1727249741056,0.168324,63835.0,63834.0,0.17113549]
[1727249741669,0.169324,63835.0,63834.0,0.17213549]
[1727249741874,0.170324,63835.0,63834.0,0.17213549]
[1727249742063,0.170324,63835.0,63834.0,0.25045949]
[1727249743359,0.169324,63835.0,63834.0,0.25045949]
[1727249743564,0.169324,63835.0,63834.0,0.25145949]
[1727249751669,0.169324,63835.0,63834.0,0.17313549]
[1727249752575,0.169324,63835.0,63834.0,0.25145949]
[1727249752576,0.079324,63835.0,63834.0,0.25145949]
[1727249760285,0.001,63835.0,63834.0,0.25145949]
[1727249761689,0.04773668,63835.0,63834.0,0.25145949]
[1727249761888,0.12605865,63835.0,63834.0,0.25145949]
[1727249762188,0.21605865,63835.0,63834.0,0.25145949]
[1727249763482,0.169323,63835.0,63834.0,0.25145949]
[1727249764179,0.169323,63835.0,63834.0,0.17313549]
[1727249765274,0.169323,63835.0,63834.0,0.25145949]
[1727249765585,0.23166252,63835.0,63834.0,0.25145949]
[1727249767515,0.079323,63835.0,63834.0,0.31405466]
[1727249767689,0.169323,63835.0,63834.0,0.31405466]
[1727249770194,0.169323,63835.0,63834.0,0.25145949]
[1727249770391,0.169323,63835.0,63834.0,0.31413859]
[1727249770798,0.169323,63835.0,63834.0,0.23581459]
[1727249772393,0.24710085,63835.0,63834.0,0.17313549]
[1727249774195,0.169323,63835.0,63834.0,0.17313549]
[1727249774589,0.530123,63835.0,63834.0,0.17313549]
[1727249774900,0.60790085,63835.0,63834.0,0.17313549]
[1727249775102,0.530123,63835.0,63834.0,0.17313549]
[1727249775686,0.530123,63835.0,63834.0,0.25145949]
[1727249776198,0.530123,63835.0,63834.0,0.31413859]
[1727249777703,0.169323,63835.0,63834.0,0.31413859]
[1727249782395,0.169323,63835.0,63834.0,0.25145949]
[1727249782898,0.169323,63835.0,63834.0,0.31413859]
[1727249783694,0.169323,63835.0,63834.0,0.23581459]
[1727249783890,0.24710085,63835.0,63834.0,0.17313549]
[1727249784195,0.24710085,63835.0,63834.0,0.2201405]
[1727249784905,0.169323,63835.0,63834.0,0.17313549]
[1727249785600,0.247646,63835.0,63834.0,0.17313549]
[1727249785896,0.247646,63835.0,63828.0,0.04700056]
[1727249785897,0.07833,63829.0,63828.0,0.04700056]
[1727249786101,0.52913,63829.0,63826.0,0.04700056]
[1727249786296,0.52913,63829.0,63822.0,0.078337]
[1727249786297,0.078334,63826.0,63825.0,0.04700056]
[1727249786492,0.168334,63826.0,63825.0,0.04700056]
[1727249786796,0.168334,63826.0,63825.0,0.22049173]
[1727249787192,0.23064947,63826.0,63825.0,0.17349117]
[1727249787694,0.078335,63825.0,63824.0,0.04700056]
[1727249788097,0.078335,63825.0,63824.0,0.21977009]
[1727249788299,0.078335,63825.0,63824.0,0.17276953]
[1727249788704,0.078336,63824.0,63823.0,0.21933857]
[1727249788903,0.12505864,63824.0,63823.0,0.04700056]
[1727249789104,0.12505864,63824.0,63822.0,0.12533756]
[1727249789303,0.078336,63824.0,63823.0,0.17233801]
[1727249789494,0.078336,63824.0,63823.0,0.29762209]
[1727249789696,0.12505864,63824.0,63823.0,0.25067501]
[1727249789894,0.12505864,63824.0,63823.0,0.080337]
[1727249790104,0.078336,63824.0,63823.0,0.25543623]
[1727249790495,0.078336,63824.0,63823.0,0.30237458]
[1727249790807,0.078336,63824.0,63823.0,0.30237401]
[1727249791397,0.078336,63824.0,63823.0,0.30337401]
[1727249791607,0.04672264,63827.0,63823.0,0.17809923]
[1727249791804,0.40752264,63829.0,63828.0,0.078331]
[1727249792107,0.3608,63829.0,63828.0,0.078331]
[1727249792297,0.3608,63829.0,63828.0,0.30652173]
[1727249792904,0.3608,63829.0,63828.0,0.39652173]
[1727249793100,0.04672264,63831.0,63830.0,0.078329]
[1727249793304,0.04670796,63833.0,63830.0,0.04693234]
[1727249793511,0.04670796,63833.0,63832.0,0.078326]
[1727249794004,0.12503196,63834.0,63832.0,0.24553148]
[1727249794205,0.12503196,63834.0,63832.0,0.29246382]
[1727249794604,0.078324,63834.0,63833.0,0.078325]
[1727249795116,0.078324,63834.0,63833.0,0.24611079]
[1727249795896,0.079324,63834.0,63833.0,0.24711079]
[1727249797005,0.079324,63834.0,63833.0,0.24811079]
[1727249797006,0.50443947,63834.0,63833.0,0.24811079]
[1727249797398,0.442124,63834.0,63833.0,0.24811079]
[1727249798005,0.50443947,63834.0,63833.0,0.24811079]
[1727249798904,0.442124,63834.0,63833.0,0.24811079]
[1727249799301,0.442124,63834.0,63833.0,0.16978579]
[1727249809910,0.081324,63834.0,63833.0,0.16978579]
[1727249810118,0.442124,63834.0,63833.0,0.16978579]
[1727249810319,0.081324,63834.0,63833.0,0.16978579]
[1727249810505,0.442124,63834.0,63833.0,0.16978579]
[1727249811809,0.081324,63834.0,63833.0,0.16978579]
[1727249812008,0.442124,63834.0,63833.0,0.16978579]
[1727249816613,0.081324,63834.0,63833.0,0.16978579]
[1727249816915,0.442124,63834.0,63833.0,0.16978579]
[1727249817718,0.081324,63834.0,63833.0,0.16978579]
[1727249817915,0.442124,63834.0,63833.0,0.16978579]
[1727249819219,0.46751991,63834.0,63833.0,0.16978579]
[1727249819721,0.55751991,63834.0,63833.0,0.16978579]
[1727249819927,0.532124,63834.0,63833.0,0.16978579]
[1727249820121,0.19671993,63834.0,63833.0,0.16978579]
[1727249820322,0.55751993,63834.0,63833.0,0.16978579]
[1727249820940,0.6100759,63834.0,63833.0,0.16978579]
[1727249821114,0.55751901,63834.0,63833.0,0.16978579]
[1727249823823,0.19671901,63834.0,63833.0,0.16978579]
[1727249824015,0.55751901,63834.0,63833.0,0.16978579]
[1727249824631,0.3638,63834.0,63833.0,0.24811079]
[1727249824832,0.3638,63834.0,63833.0,0.40078989]
[1727249825037,0.3638,63834.0,63833.0,0.33811079]
[1727249828140,0.41055622,63834.0,63833.0,0.33811079]
[1727249828934,0.41055622,63834.0,63833.0,0.24811079]
[1727249829642,0.41055069,63834.0,63833.0,0.24811079]
[1727249830133,0.48887469,63834.0,63833.0,0.24811079]
[1727249830723,0.12807469,63834.0,63833.0,0.24811079]
[1727249832222,0.12807469,63834.0,63833.0,0.31071001]
[1727249833434,0.081324,63834.0,63833.0,0.31071001]
[1727249836232,0.081324,63834.0,63833.0,0.24811079]
[1727249837751,0.003,63834.0,63833.0,0.24811079]
[1727249839933,0.003,63834.0,63833.0,0.33811079]
[1727249840133,0.003,63834.0,63833.0,0.40071001]
[1727249843630,0.003,63834.0,63833.0,0.33811079]
[1727249845543,0.003,63834.0,63833.0,0.40071001]
[1727249846934,0.081324,63834.0,63833.0,0.31071001]
[1727249847142,0.081324,63834.0,63833.0,0.23238501]
[1727249847331,0.081324,63834.0,63833.0,0.16978579]
[1727249847766,0.14365826,63834.0,63833.0,0.16978579]
[1727249848339,0.081324,63834.0,63833.0,0.21673629]
[1727249848630,0.081324,63834.0,63833.0,0.16978579]
[1727249849045,0.003,63834.0,63833.0,0.33811079]
[1727249849340,0.003,63834.0,63833.0,0.24811079]
[1727249849541,0.04974396,63834.0,63833.0,0.24811079]
[1727249849747,0.003,63834.0,63833.0,0.24811079]
[1727249851439,0.003,63834.0,63833.0,0.31071001]
[1727249853241,0.003,63834.0,63833.0,0.24811079]
[1727249853646,0.06532077,63834.0,63833.0,0.31075574]
[1727249854248,0.003,63834.0,63833.0,0.24811079]
[1727249855243,0.003,63834.0,63833.0,0.31077318]
[1727249855458,0.06537693,63834.0,63833.0,0.24811079]
[1727249855750,0.003,63834.0,63833.0,0.31077307]
[1727249856055,0.003,63834.0,63833.0,0.24811079]
[1727249856056,0.06537713,63834.0,63833.0,0.24811079]
[1727249857671,0.003,63834.0,63833.0,0.24811079]
[1727249858166,0.04978301,63834.0,63833.0,0.24811079]
[1727249860152,0.003,63834.0,63833.0,0.32454358]
[1727249860853,0.003,63834.0,63833.0,0.40285728]
[1727249861053,0.04978301,63834.0,63833.0,0.24811079]
[1727249864080,0.003,63834.0,63833.0,0.24811079]
[1727249864268,0.04977881,63834.0,63833.0,0.24811079]
[1727249866773,0.003,63834.0,63833.0,0.24811079]
[1727249869170,0.15537713,63834.0,63833.0,0.31076496]
[1727249870179,0.23370113,63834.0,63833.0,0.31076496]
[1727249870780,0.171324,63834.0,63833.0,0.24811079]
[1727249871277,0.171324,63834.0,63833.0,0.2950989]
[1727249872079,0.171324,63834.0,63833.0,0.2167739]
[1727249872974,0.171324,63834.0,63833.0,0.04898811]
[1727249873374,0.171324,63834.0,63833.0,0.002]
[1727249873681,1.31920182,63834.0,63833.0,0.002]
[1727249874376,1.241284,63834.0,63829.0,0.04698251]
[1727249874575,0.50146956,63830.0,63829.0,0.04698251]
[1727249874782,0.439129,63830.0,63829.0,0.20994309]
[1727249874985,0.07833,63829.0,63828.0,0.04698251]
[1727249875180,0.14066942,63829.0,63828.0,0.04698251]
[1727249875375,0.14066942,63829.0,63828.0,0.20994309]
[1727249875884,0.14066942,63829.0,63828.0,0.28827409]
[1727249875885,0.06233942,63829.0,63828.0,0.28827409]
[1727249876280,0.50146842,63830.0,63829.0,0.07833]
[1727249876677,0.50146842,63830.0,63829.0,0.25256525]
[1727249878693,0.50346842,63830.0,63829.0,0.25256525]
[1727249878887,0.42513942,63830.0,63829.0,0.25256525]
[1727249879115,0.42513942,63830.0,63829.0,0.29954776]
[1727249879116,0.3658,63830.0,63829.0,0.29954776]
[1727249879285,0.3658,63830.0,63829.0,0.2770565]
[1727249879484,0.3658,63830.0,63829.0,0.32403901]
[1727249879792,0.3658,63830.0,63829.0,0.25256525]
[1727249880979,0.3658,63830.0,63829.0,0.2770567]
[1727249881178,0.41252854,63830.0,63829.0,0.32403921]
[1727249881789,0.41252854,63830.0,63829.0,0.29954776]
[1727249882793,0.05172854,63830.0,63829.0,0.29954776]
[1727249882992,0.05172854,63830.0,63829.0,0.25256525]
[1727249883292,0.005,63830.0,63829.0,0.31521942]
[1727249884794,0.005,63830.0,63829.0,0.25256525]
[1727249886699,0.005,63830.0,63829.0,0.35536791]
[1727249887007,0.005,63830.0,63829.0,0.43369791]
[1727249887391,0.005,63830.0,63829.0,0.43369795]
[1727249887607,0.005,63830.0,63829.0,0.43369789]
[1727249887899,0.005,63830.0,63829.0,0.40920895]
[1727249888087,0.005,63830.0,63829.0,0.45818685]
[1727249889494,0.005,63830.0,63829.0,0.53463036]
[1727249889809,0.005,63830.0,63829.0,0.51014142]
[1727249890925,0.005,63830.0,63829.0,0.51014137]
[1727249891195,0.005,63830.0,63829.0,0.43369786]
[1727249891800,0.005,63830.0,63829.0,0.35538416]
[1727249891992,0.0037,63835.0,63834.0,0.156648]
[1727249892188,0.0074,63839.0,63838.0,0.078319]
[1727249892393,0.04672854,63842.0,63840.0,0.09]
[1727249892599,0.04672854,63843.0,63842.0,0.078314]
[1727249892785,0.04672854,63843.0,63842.0,0.14973358]
[1727249892990,0.04672854,63843.0,63842.0,0.32885904]
[1727249893196,0.04672854,63843.0,63842.0,0.28192837]
[1727249894104,0.05172854,63843.0,63842.0,0.28392837]
[1727249894402,0.05172854,63843.0,63842.0,0.25943946]
[1727249894604,0.13004154,63843.0,63842.0,0.25943946]
[1727249895107,0.116413,63843.0,63842.0,0.25943946]
[1727249897205,0.17875242,63843.0,63842.0,0.25943946]
[1727249899599,0.116413,63843.0,63842.0,0.25943946]
[1727249900394,0.16311684,63843.0,63842.0,0.25943946]
[1727249902104,0.16311684,63843.0,63842.0,0.18112546]
[1727249902308,0.116413,63843.0,63842.0,0.18112546]
[1727249902714,0.005,63843.0,63842.0,0.27112546]
[1727249903010,0.005,63843.0,63842.0,0.42775346]
[1727249903810,0.005,63843.0,63842.0,0.86678725]
[1727249904327,0.003,63843.0,63842.0,0.78755346]
[1727249904508,0.0074,63850.0,63849.0,0.078305]
[1727249904709,0.3608,63854.0,63849.0,0.40765969]
[1727249904911,0.3608,63854.0,63853.0,0.0783]
[1727249906119,0.06233942,63860.0,63853.0,0.0783]
[1727249906120,0.0467045,63858.0,63853.0,0.34526478]
[1727249906422,0.0467045,63861.0,63859.0,0.078293]
[1727249906611,0.0467045,63862.0,63859.0,0.078293]
[1727249907111,0.0467045,63862.0,63860.0,0.078291]
[1727249907510,0.5771535,63863.0,63860.0,0.078291]
[1727249907812,0.5757935,63863.0,63860.0,0.078291]
[1727249908320,0.529089,63863.0,63860.0,0.078291]
[1727249908617,0.529089,63863.0,63860.0,0.079291]
[1727249909213,0.529089,63863.0,63860.0,0.080291]
[1727249911040,0.078289,63862.0,63860.0,0.080291]
[1727249913225,0.078289,63862.0,63861.0,0.078291]
[1727249914427,0.078289,63862.0,63861.0,0.080291]
[1727249916031,0.36216,63863.0,63862.0,0.078289]
[1727249916232,0.3608,63863.0,63862.0,0.078289]
[1727249917135,0.439088,63863.0,63862.0,0.079289]
[1727249917957,0.439088,63863.0,63862.0,0.080289]
[1727249918436,0.0074,63867.0,63866.0,0.156568]
[1727249918647,0.0074,63874.0,63866.0,0.4508]
[1727249918946,0.0074,63877.0,63873.0,0.3608]
[1727249919139,0.09,63880.0,63873.0,0.3608]
[1727249919331,0.45446,63883.0,63879.0,0.09]
[1727249919635,0.4531,63883.0,63876.0,0.09]
[1727249919842,0.09,63881.0,63876.0,0.09]
[1727249920141,0.09,63881.0,63877.0,0.17586878]
[1727249920333,0.09,63881.0,63880.0,0.078267]
[1727249920734,0.09,63881.0,63880.0,0.25413578]
[1727249921123,0.45450001,63883.0,63880.0,0.17586878]
[1727249921124,0.42380001,63883.0,63880.0,0.17586878]
[1727249921328,0.391,63883.0,63880.0,0.17586878]
[1727249921527,0.3608,63883.0,63882.0,0.078265]
[1727249921926,0.3608,63883.0,63882.0,0.637865]
[1727249922131,0.0074,63889.0,63888.0,0.078258]
[1727249922324,0.3608,63891.0,63888.0,0.078258]
[1727249922525,0.168256,63890.0,63888.0,0.16592478]
[1727249922727,0.198756,63890.0,63888.0,0.16592478]
[1727249922933,0.09,63889.0,63885.0,0.24572926]
[1727249923233,0.0305,63890.0,63882.0,0.3608]
[1727249923432,0.078259,63888.0,63886.0,0.16746826]
[1727249923631,0.078259,63888.0,63885.0,0.078261]
[1727249923941,0.078259,63888.0,63886.0,0.16373596]
[1727249924154,0.09,63890.0,63887.0,0.078259]
[1727249924330,0.09,63890.0,63886.0,0.16373596]
[1727249924331,0.3608,63891.0,63888.0,0.078257]
[1727249924527,0.3608,63891.0,63888.0,0.24199296]
[1727249924728,0.3608,63891.0,63890.0,0.168255]
[1727249924929,0.0074,63896.0,63890.0,0.4508]
[1727249925131,0.439045,63899.0,63895.0,0.078249]
[1727249925334,0.078245,63898.0,63895.0,0.078249]
[1727249925536,0.078245,63898.0,63896.0,0.17878356]
[1727249925733,0.09,63897.0,63896.0,0.17878356]
[1727249926334,0.078245,63898.0,63896.0,0.17878356]
[1727249927034,0.078247,63897.0,63896.0,0.17978356]
[1727249927235,0.078247,63897.0,63896.0,0.001]
[1727249927742,0.078247,63897.0,63896.0,0.002]
[1727249929444,0.078247,63897.0,63896.0,0.18209634]
[1727249931453,1.578247,63897.0,63896.0,0.18209634]
[1727249932839,0.078247,63897.0,63896.0,0.18209634]
[1727249935238,0.078247,63897.0,63896.0,0.26034434]
[1727249935637,0.3608,63899.0,63898.0,0.078245]
[1727249936040,0.3608,63899.0,63898.0,0.24379866]
[1727249936245,0.439044,63899.0,63898.0,0.16555366]
[1727249936541,0.439044,63899.0,63897.0,0.16555366]
[1727249936840,0.439044,63899.0,63898.0,0.001]
[1727249937347,0.439044,63899.0,63898.0,0.17850755]
[1727249938839,0.439044,63899.0,63898.0,0.17750755]
[1727249939244,0.439044,63899.0,63898.0,0.17650755]
[1727249939850,0.439044,63899.0,63898.0,0.17750755]
[1727249940053,0.439044,63899.0,63898.0,0.17850755]
[1727249940348,0.439044,63899.0,63894.0,0.17304865]
[1727249940553,0.078263,63884.0,63882.0,0.078264]
[1727249940757,0.3608,63887.0,63883.0,0.17304865]
[1727249941079,0.078258,63888.0,63883.0,0.3608]
[1727249941443,0.078258,63888.0,63884.0,0.162779]
[1727249941753,0.078258,63888.0,63886.0,0.078259]
[1727249942048,0.078261,63886.0,63884.0,0.162779]
[1727249942260,0.078261,63886.0,63883.0,0.439064]